fUSD/lending_fUSD_20250716
["ID","MTS","AMOUNT","RATE_DAILY","PERIOD"]
[372481888,1752660642141,-460.0,0.00021917,2]
[372481890,1752660642151,-500.0,0.00021917,2]
[372481892,1752660642160,-460.0,0.00021917,2]
[372481894,1752660642170,-460.0,0.00021917,2]
[372481896,1752660642180,-868.39,0.00021917,2]
[372481898,1752660642189,-460.0,0.00021917,2]
[372481900,1752660642198,-460.0,0.00021917,2]
[372481902,1752660642208,-460.0,0.00021917,2]
[372481904,1752660642217,-460.0,0.00021917,2]
[372481906,1752660642227,-460.0,0.00021917,2]
[372481908,1752660642237,-1817.37,0.00021917,2]
[372481910,1752660642246,-752.03,0.00021917,2]
[372481912,1752660642256,-460.0,0.00021917,2]
[372481914,1752660642265,-460.0,0.00021917,2]
[372481916,1752660642275,-460.0,0.00021917,2]
[372481918,1752660642285,-1427.4,0.00021917,2]
[372481920,1752660642295,-460.0,0.00021917,2]
[372481922,1752660642304,-151.0,0.00021917,2]
[372481924,1752660642313,-151.0,0.00021917,2]
[372481926,1752660642323,-151.0,0.00021917,2]
[372481928,1752660642333,-151.0,0.00021917,2]
[372481930,1752660642343,-1759.53,0.00021917,2]
[372481932,1752660642353,-460.0,0.00021917,2]
[372481934,1752660642362,-460.0,0.00021917,2]
[372481936,1752660642372,-460.0,0.00021917,2]
[372481938,1752660642382,-461.03122876,0.00021917,2]
[372481940,1752660642391,-1281.14,0.00021917,2]
[372481942,1752660642401,-460.0,0.00021917,2]
[372481944,1752660642412,-470.76014089,0.00021917,2]
[372481946,1752660642424,-761.36,0.00021917,2]
[372481948,1752660642433,-1373.92,0.00021917,2]
[372481950,1752660642443,-190.044267,0.00021917,2]
[372481953,1752660642454,-1571.48,0.00021917,2]
[372481955,1752660642463,-460.0,0.00021917,2]
[372481957,1752660642473,-3821.64,0.00021917,2]
[372481959,1752660642483,-460.0,0.00021917,2]
[372481961,1752660642495,-151.0,0.00021917,2]
[372481963,1752660642505,-460.0,0.00021917,2]
[372481965,1752660642516,-460.0,0.00021917,2]
[372481967,1752660642526,-460.0,0.00021917,2]
[372481969,1752660642536,-460.0,0.00021917,2]
[372481971,1752660642546,-460.0,0.00021917,2]
[372481973,1752660642555,-460.0,0.00021917,2]
[372481975,1752660642565,-463.37739623,0.00021917,2]
[372481977,1752660642575,-460.0,0.00021917,2]
[372481979,1752660642585,-1066.63,0.00021917,2]
[372481981,1752660642594,-460.0,0.00021917,2]
[372481983,1752660642605,-460.0,0.00021917,2]
[372481985,1752660642614,-460.0,0.00021917,2]
[372481987,1752660642625,-460.0,0.00021917,2]
[372481989,1752660642635,-937.61,0.00021917,2]
[372481991,1752660642644,-877.21,0.00021917,2]
[372481993,1752660642654,-460.0,0.00021917,2]
[372481995,1752660642664,-261.577302,0.00021917,2]
[372481997,1752660642674,-261.577302,0.00021917,2]
[372481999,1752660642684,-500.0,0.00021917,2]
[372482001,1752660642694,-460.0,0.00021917,2]
[372482003,1752660642704,-460.0,0.00021917,2]
[372482005,1752660642717,-500.0,0.00021917,2]
[372482007,1752660642727,-500.0,0.00021917,2]
[372482009,1752660642738,-500.0,0.00021917,2]
[372482011,1752660642748,-500.0,0.00021917,2]
[372482013,1752660642758,-500.0,0.00021917,2]
[372482015,1752660642768,-500.0,0.00021917,2]
[372482017,1752660642777,-460.0,0.00021917,2]
[372482019,1752660642788,-460.75993397,0.00021917,7]
[372482021,1752660642797,-261.577302,0.00021917,2]
[372482023,1752660642807,-261.577302,0.00021917,2]
[372482025,1752660642817,-460.0,0.00021917,2]
[372482027,1752660642827,-509.0963141,0.00021917,2]
[372482029,1752660642837,-1556.05,0.00021917,2]
[372482032,1752660642847,-1262.28,0.00021917,2]
[372482033,1752660642856,-437.61655254,0.00021917,2]
[372482035,1752660642866,-460.0,0.00021917,2]
[372482037,1752660642876,-821.25,0.00021917,2]
[372482040,1752660642886,-622.08,0.00021917,2]
[372482042,1752660642896,-1427.28,0.00021917,2]
[372482044,1752660642906,-590.96,0.00021917,2]
[372482045,1752660642917,-460.0,0.00021917,2]
[372482047,1752660642928,-460.0,0.00021917,2]
[372482091,1752660643294,-479.56,0.00021917,2]
[372482094,1752660643316,-479.56,0.00021917,2]
[372482097,1752660643326,-1799.63,0.00021917,2]
[372482099,1752660643336,-460.0,0.00021917,2]
[372482100,1752660643345,-460.0,0.00021917,2]
[372482102,1752660643355,-460.0,0.00021917,2]
[372482104,1752660643365,-486.76,0.00021917,2]
[372482107,1752660643375,-860.22,0.00021917,2]
[372482109,1752660643384,-860.22,0.00021917,2]
[372482111,1752660643395,-860.22,0.00021917,2]
[372482113,1752660643405,-860.22,0.00021917,2]
[372482115,1752660643417,-460.0,0.00021917,2]
[372482117,1752660643426,-860.22,0.00021917,2]
[372482119,1752660643435,-860.22,0.00021917,2]
[372482121,1752660643445,-860.22,0.00021917,2]
[372482123,1752660643456,-838.58,0.00021917,2]
[372482124,1752660643466,-860.22,0.00021917,2]
[372482126,1752660643475,-860.22,0.00021917,2]
[372482128,1752660643485,-860.22,0.00021917,2]
[372482131,1752660643497,-860.22,0.00021917,2]
[372482133,1752660643507,-860.22,0.00021917,2]
[372482135,1752660643517,-460.0,0.00021917,2]
[372482137,1752660643526,-860.22,0.00021917,2]
[372482139,1752660643536,-860.22,0.00021917,2]
[372482141,1752660643545,-860.22,0.00021917,2]
[372482142,1752660643555,-582.26,0.00021917,2]
[372482144,1752660643565,-460.0,0.00021917,2]
[372482146,1752660643575,-860.22,0.00021917,2]
[372482148,1752660643585,-860.22,0.00021917,2]
[372482150,1752660643595,-860.22,0.00021917,2]
[372482153,1752660643605,-860.22,0.00021917,2]
[372482155,1752660643615,-860.22,0.00021917,2]
[372482157,1752660643625,-860.22,0.00021917,2]
[372482159,1752660643635,-860.22,0.00021917,2]
[372482161,1752660643644,-860.22,0.00021917,2]
[372482163,1752660643653,-860.22025427,0.00021917,2]
[372482165,1752660643664,-1810.93,0.00021917,2]
[372482167,1752660643673,-460.0,0.00021917,2]
[372482169,1752660643683,-477.79,0.00021917,2]
[372482171,1752660643692,-460.0,0.00021917,2]
[372482173,1752660643703,-460.0,0.00021917,2]
[372482175,1752660643713,-151.0,0.00021917,2]
[372482177,1752660643723,-738.11,0.00021917,2]
[372482179,1752660643733,-500.0,0.00021917,2]
[372482181,1752660643743,-500.0,0.00021917,2]
[372482184,1752660643753,-500.0,0.00021917,2]
[372482186,1752660643763,-344.82493385,0.00021917,2]
[372482189,1752660643772,-460.0,0.00021917,2]
[372482191,1752660643781,-3290.56,0.00021917,2]
[372482193,1752660643791,-1493.18,0.00021917,2]
[372482195,1752660643801,-460.0,0.00021917,2]
[372482197,1752660643810,-460.0,0.00021917,2]
[372482199,1752660643820,-151.0,0.00021917,2]
[372482201,1752660643830,-151.0,0.00021917,2]
[372482203,1752660643839,-2860.17,0.00021917,2]
[372482204,1752660643849,-460.0,0.00021917,2]
[372482205,1752660643858,-460.0,0.00021917,2]
[372482206,1752660643868,-460.0,0.00021917,2]
[372482207,1752660643877,-460.0,0.00021917,2]
[372482208,1752660643887,-151.0,0.00021917,2]
[372482209,1752660643896,-1230.55,0.00021917,2]
[372482210,1752660643906,-1364.96,0.00021917,2]
[372482211,1752660643915,-151.0,0.00021917,2]
[372482212,1752660643925,-460.0,0.00021917,2]
[372482213,1752660643935,-460.0,0.00021917,2]
[372482214,1752660643945,-460.0,0.00021917,2]
[372482216,1752660643955,-151.0,0.00021917,2]
[372482218,1752660643965,-473.3,0.00021917,2]
[372482220,1752660643979,-1466.12,0.00021917,2]
[372482222,1752660643991,-1701.06,0.00021917,2]
[372482224,1752660644002,-1198.9,0.00021917,2]
[372482227,1752660644013,-837.79,0.00021917,2]
[372482230,1752660644023,-1603.85,0.00021917,2]
[372482233,1752660644033,-460.0,0.00021917,2]
[372482235,1752660644043,-10302.58773933,0.00021917,2]
[372482237,1752660644053,-465.48,0.00021917,2]
[372482239,1752660644063,-460.0,0.00021917,2]
[372482241,1752660644073,-460.0,0.00021917,2]
[372482243,1752660644083,-2894.84,0.00021917,2]
[372482245,1752660644093,-460.0,0.00021917,2]
[372482247,1752660644104,-460.0,0.00021917,2]
[372482249,1752660644113,-1069.29,0.00021917,2]
[372482251,1752660644124,-1143.18,0.00021917,2]
[372482253,1752660644133,-460.0,0.00021917,2]
[372482255,1752660644143,-460.0,0.00021917,2]
[372482257,1752660644153,-460.0,0.00021917,2]
[372482259,1752660644163,-651.58,0.00021917,2]
[372482261,1752660644172,-700.74,0.00021917,2]
[372482263,1752660644182,-460.0,0.00021917,2]
[372482265,1752660644192,-460.0,0.00021917,2]
[372482267,1752660644201,-2128.28,0.00021917,2]
[372482269,1752660644211,-1294.75,0.00021917,2]
[372482271,1752660644221,-460.0,0.00021917,2]
[372482273,1752660644231,-460.0,0.00021917,2]
[372482276,1752660644243,-493.46383809,0.00021917,2]
[372482278,1752660644254,-460.0,0.00021917,2]
[372482280,1752660644264,-535.51,0.00021917,2]
[372482282,1752660644274,-460.0,0.00021917,2]
[372482284,1752660644283,-460.0,0.00021917,2]
[372482286,1752660644293,-460.0,0.00021917,2]
[372482288,1752660644303,-1036.67,0.00021917,2]
[372482290,1752660644312,-720.21,0.00021917,2]
[372482292,1752660644322,-1958.52,0.00021917,2]
[372482294,1752660644332,-460.0,0.00021917,2]
[372482296,1752660644341,-460.0,0.00021917,2]
[372482298,1752660644352,-460.0,0.00021917,2]
[372482300,1752660644362,-465.36,0.00021917,2]
[372482302,1752660644371,-500.0,0.00021917,2]
[372482304,1752660644381,-460.0,0.00021917,2]
[372482306,1752660644391,-500.0,0.00021917,2]
[372482308,1752660644402,-460.0,0.00021917,2]
[372482310,1752660644412,-1241.37,0.00021917,2]
[372482312,1752660644425,-1779.53,0.00021917,2]
[372482315,1752660644435,-460.0,0.00021917,2]
[372482317,1752660644445,-577.31,0.00021917,2]
[372482319,1752660644457,-586.5,0.00021917,2]
[372482321,1752660644467,-586.5,0.00021917,2]
[372482323,1752660644478,-586.5,0.00021917,2]
[372482325,1752660644487,-460.0,0.00021917,2]
[372482327,1752660644499,-586.5,0.00021917,2]
[372482329,1752660644509,-663.46,0.00021917,2]
[372482331,1752660644519,-586.5,0.00021917,2]
[372482333,1752660644529,-586.5,0.00021917,2]
[372482335,1752660644538,-460.0,0.00021917,2]
[372482337,1752660644548,-586.5,0.00021917,2]
[372482339,1752660644557,-586.5,0.00021917,2]
[372482341,1752660644568,-460.0,0.00021917,2]
[372482343,1752660644578,-586.5,0.00021917,2]
[372482345,1752660644588,-586.5,0.00021917,2]
[372482347,1752660644598,-1113.25,0.00021917,2]
[372482349,1752660644607,-586.5,0.00021917,2]
[372482351,1752660644617,-586.5,0.00021917,2]
[372482353,1752660644626,-460.0,0.00021917,2]
[372482355,1752660644637,-460.0,0.00021917,2]
[372482357,1752660644646,-630.98,0.00021917,2]
[372482359,1752660644656,-531.0,0.00021917,2]
[372482361,1752660644666,-460.0,0.00021917,2]
[372482363,1752660644676,-460.0,0.00021917,2]
[372482365,1752660644686,-1083.64,0.00021917,2]
[372482367,1752660644695,-460.0,0.00021917,2]
[372482369,1752660644706,-151.0,0.00021917,2]
[372482371,1752660644715,-151.0,0.00021917,2]
[372482373,1752660644725,-460.0,0.00021917,2]
[372482375,1752660644735,-151.0,0.00021917,2]
[372482377,1752660644744,-460.0,0.00021917,2]
[372482379,1752660644754,-1209.76,0.00021917,2]
[372482381,1752660644764,-151.0,0.00021917,2]
[372482383,1752660644774,-573.32,0.00021917,2]
[372482385,1752660644783,-460.0,0.00021917,2]
[372482387,1752660644793,-460.0,0.00021917,2]
[372482389,1752660644804,-460.0,0.00021917,2]
[372482392,1752660644814,-151.0,0.00021917,2]
[372482394,1752660644823,-460.0,0.00021917,2]
[372482396,1752660644835,-151.0,0.00021917,2]
[372482398,1752660644845,-460.0,0.00021917,2]
[372482400,1752660644855,-151.0,0.00021917,2]
[372482402,1752660644865,-151.0,0.00021917,2]
[372482404,1752660644874,-151.0,0.00021917,2]
[372482406,1752660644884,-460.0,0.00021917,2]
[372482408,1752660644894,-151.0,0.00021917,2]
[372482410,1752660644904,-460.0,0.00021917,2]
[372482412,1752660644913,-151.0,0.00021917,2]
[372482414,1752660644923,-151.0,0.00021917,2]
[372482416,1752660644933,-460.0,0.00021917,2]
[372482418,1752660644942,-500.0,0.00021917,2]
[372482420,1752660644951,-471.9,0.00021917,2]
[372482422,1752660644961,-460.0,0.00021917,2]
[372482424,1752660644971,-500.0,0.00021917,2]
[372482426,1752660644981,-1266.72,0.00021917,2]
[372482428,1752660644991,-500.0,0.00021917,2]
[372482430,1752660645001,-460.0,0.00021917,2]
[372482432,1752660645010,-460.0,0.00021917,2]
[372482434,1752660645020,-923.79,0.00021917,2]
[372482436,1752660645029,-500.0,0.00021917,2]
[372482438,1752660645039,-500.0,0.00021917,2]
[372482440,1752660645049,-3393.03,0.00021917,2]
[372482442,1752660645058,-500.0,0.00021917,2]
[372482444,1752660645068,-500.0,0.00021917,2]
[372482446,1752660645078,-460.0,0.00021917,2]
[372482448,1752660645088,-2883.53,0.00021917,2]
[372482450,1752660645097,-500.0,0.00021917,2]
[372482452,1752660645108,-500.0,0.00021917,2]
[372482454,1752660645118,-500.0,0.00021917,2]
[372482456,1752660645127,-514.19297647,0.00021917,2]
[372482458,1752660645137,-460.0,0.00021917,2]
[372482460,1752660645147,-1310.91,0.00021917,2]
[372482462,1752660645157,-1074.76,0.00021917,2]
[372482464,1752660645167,-460.0,0.00021917,2]
[372482466,1752660645177,-995.04,0.00021917,2]
[372482468,1752660645187,-460.0,0.00021917,2]
[372482470,1752660645196,-461.83715601,0.00021917,2]
[372482472,1752660645206,-460.0,0.00021917,2]
[372482474,1752660645216,-2784.08,0.00021917,2]
[372482476,1752660645226,-460.0,0.00021917,2]
[372482478,1752660645236,-460.0,0.00021917,2]
[372482480,1752660645246,-460.0,0.00021917,2]
[372482482,1752660645256,-460.0,0.00021917,2]
[372482484,1752660645266,-460.0,0.00021917,2]
[372482486,1752660645276,-461.5,0.00021917,2]
[372482488,1752660645286,-460.0,0.00021917,2]
[372482490,1752660645295,-1723.99,0.00021917,2]
[372482492,1752660645305,-1492.3,0.00021917,2]
[372482494,1752660645315,-151.42354,0.00021917,2]
[372482496,1752660645325,-1249.38,0.00021917,2]
[372482498,1752660645334,-460.0,0.00021917,2]
[372482500,1752660645344,-596.34,0.00021917,2]
[372482502,1752660645354,-460.0,0.00021917,2]
[372482504,1752660645364,-855.05,0.00021917,2]
[372482506,1752660645375,-159.700643,0.00021917,2]
[372482508,1752660645385,-159.700643,0.00021917,2]
[372482510,1752660645396,-1728.35,0.00021917,2]
[372482513,1752660645407,-151.0,0.00021917,2]
[372482515,1752660645427,-490.37,0.00021917,2]
[372482517,1752660645445,-151.40537,0.00021917,2]
[372482519,1752660645455,-533.47157827,0.00021917,2]
[372482521,1752660645466,-460.0,0.00021917,2]
[372482523,1752660645475,-477.61211883,0.00021917,2]
[372482525,1752660645485,-159.700643,0.00021917,2]
[372482527,1752660645495,-1467.03,0.00021917,2]
[372482529,1752660645505,-159.700643,0.00021917,2]
[372482531,1752660645515,-460.0,0.00021917,2]
[372482533,1752660645524,-460.0,0.00021917,2]
[372482534,1752660645534,-499.25,0.00021917,2]
[372482537,1752660645543,-460.0,0.00021917,2]
[372482539,1752660645553,-461.18,0.00021917,2]
[372482541,1752660645563,-3754.64,0.00021917,2]
[372482543,1752660645573,-1053.47,0.00021917,2]
[372482545,1752660645584,-449.76738851,0.00021917,2]
[372482547,1752660645594,-460.0,0.00021917,2]
[372482549,1752660645603,-151.0,0.00021917,2]
[372482551,1752660645613,-460.0,0.00021917,2]
[372482553,1752660645622,-151.0,0.00021917,2]
[372482555,1752660645632,-1979.37,0.00021917,2]
[372482557,1752660645642,-494.68,0.00021917,2]
[372482559,1752660645652,-460.0,0.00021917,2]
[372482561,1752660645662,-598.88,0.00021917,2]
[372482563,1752660645671,-801.92,0.00021917,2]
[372482565,1752660645681,-922.81,0.00021917,2]
[372482567,1752660645690,-568.3,0.00021917,2]
[372482569,1752660645700,-151.0,0.00021917,2]
[372482571,1752660645711,-2458.42,0.00021917,2]
[372482573,1752660645720,-239.887276,0.00021917,2]
[372482575,1752660645731,-460.0,0.00021917,2]
[372482577,1752660645741,-460.0,0.00021917,2]
[372482579,1752660645751,-896.96,0.00021917,2]
[372482591,1752660645856,-460.0,0.00021917,2]
[372482593,1752660645867,-460.0,0.00021917,2]
[372482595,1752660645876,-460.0,0.00021917,2]
[372482597,1752660645886,-1698.3,0.00021917,2]
[372482598,1752660645895,-151.950839,0.00021917,2]
[372482599,1752660645904,-388.70770517,0.00021917,2]
[372482600,1752660645913,-1698.3,0.00021917,2]
[372482601,1752660645922,-460.0,0.00021917,2]
[372482602,1752660645931,-1698.3,0.00021917,2]
[372482603,1752660645941,-1698.3,0.00021917,2]
[372482604,1752660645950,-475.36,0.00021917,2]
[372482605,1752660645959,-1698.3,0.00021917,2]
[372482606,1752660645968,-1698.3,0.00021917,2]
[372482608,1752660645977,-460.0,0.00021917,2]
[372482610,1752660645987,-460.0,0.00021917,2]
[372482611,1752660645996,-507.5,0.00021917,2]
[372482614,1752660646007,-460.0,0.00021917,2]
[372482615,1752660646016,-460.0,0.00021917,2]
[372482617,1752660646026,-464.86499642,0.00021917,2]
[372482619,1752660646035,-460.0,0.00021917,2]
[372482621,1752660646045,-1201.18,0.00021917,2]
[372482623,1752660646054,-460.0,0.00021917,2]
[372482625,1752660646063,-460.0,0.00021917,2]
[372482627,1752660646073,-1273.73,0.00021917,2]
[372482629,1752660646083,-460.92467101,0.00021917,2]
[372482631,1752660646092,-495.38001186,0.00021917,2]
[372482633,1752660646102,-1251.59,0.00021917,2]
[372482635,1752660646111,-460.0,0.00021917,2]
[372482637,1752660646121,-460.0,0.00021917,2]
[372482639,1752660646130,-1738.58,0.00021917,2]
[372482641,1752660646141,-556.21,0.00021917,2]
[372482643,1752660646150,-460.98407075,0.00021917,2]
[372482645,1752660646160,-460.0,0.00021917,2]
[372482647,1752660646169,-531.48,0.00021917,2]
[372482649,1752660646179,-460.0,0.00021917,2]
[372482651,1752660646189,-460.0,0.00021917,2]
[372482653,1752660646199,-550.41,0.00021917,2]
[372482655,1752660646209,-460.0,0.00021917,2]
[372482657,1752660646219,-460.0,0.00021917,2]
[372482659,1752660646228,-460.0,0.00021917,2]
[372482661,1752660646238,-2563.91,0.00021917,2]
[372482663,1752660646248,-151.0,0.00021917,2]
[372482666,1752660646259,-151.0,0.00021917,2]
[372482668,1752660646268,-460.0,0.00021917,2]
[372482670,1752660646277,-2309.55,0.00021917,2]
[372482672,1752660646287,-2309.55,0.00021917,2]
[372482674,1752660646296,-2309.55,0.00021917,2]
[372482676,1752660646306,-2309.55,0.00021917,2]
[372482678,1752660646316,-2309.55,0.00021917,2]
[372482680,1752660646326,-1304.77,0.00021917,2]
[372482682,1752660646335,-2309.55,0.00021917,2]
[372482684,1752660646344,-2309.55,0.00021917,2]
[372482685,1752660646353,-2309.55,0.00021917,2]
[372482687,1752660646362,-460.0,0.00021917,2]
[372482689,1752660646371,-2309.55,0.00021917,2]
[372482691,1752660646381,-2309.55,0.00021917,2]
[372482693,1752660646391,-2309.55,0.00021917,2]
[372482695,1752660646400,-151.0,0.00021917,2]
[372482697,1752660646410,-2309.55,0.00021917,2]
[372482699,1752660646424,-2309.55,0.00021917,2]
[372482702,1752660646434,-2309.55,0.00021917,2]
[372482703,1752660646443,-2309.55,0.00021917,2]
[372482705,1752660646453,-2309.55,0.00021917,2]
[372482709,1752660646473,-2974.01,0.00021917,2]
[372482711,1752660646485,-2309.55,0.00021917,2]
[372482713,1752660646496,-2309.55,0.00021917,2]
[372482715,1752660646506,-2309.55,0.00021917,2]
[372482717,1752660646515,-2309.55,0.00021917,2]
[372482719,1752660646525,-615.19,0.00021917,2]
[372482721,1752660646536,-151.0,0.00021917,2]
[372482723,1752660646546,-2309.55,0.00021917,2]
[372482725,1752660646557,-2309.55,0.00021917,2]
[372482727,1752660646567,-493.69,0.00021917,2]
[372482729,1752660646577,-2309.55,0.00021917,2]
[372482731,1752660646588,-460.0,0.00021917,2]
[372482733,1752660646597,-460.0,0.00021917,2]
[372482735,1752660646607,-2309.5829438,0.00021917,2]
[372482737,1752660646617,-507.77,0.00021917,2]
[372482740,1752660646627,-497.84,0.00021917,2]
[372482742,1752660646638,-2122.75,0.00021917,2]
[372482743,1752660646648,-2860.62,0.00021917,2]
[372482746,1752660646658,-255.60130153,0.00021917,2]
[372482748,1752660646668,-460.0,0.00021917,2]
[372482750,1752660646679,-1487.96,0.00021917,2]
[372482751,1752660646689,-507.69,0.00021917,2]
[372482753,1752660646699,-835.21,0.00021917,2]
[372482755,1752660646708,-460.0,0.00021917,2]
[372482757,1752660646719,-460.0,0.00021917,2]
[372482759,1752660646729,-460.0,0.00021917,2]
[372482761,1752660646740,-151.323722,0.00021917,2]
[372482763,1752660646750,-460.0,0.00021917,2]
[372482765,1752660646758,-1043.96,0.00021917,2]
[372482767,1752660646768,-508.14680815,0.00021917,2]
[372482769,1752660646777,-460.0,0.00021917,2]
[372482771,1752660646787,-460.0,0.00021917,2]
[372482774,1752660646797,-151.0,0.00021917,2]
[372482777,1752660646807,-460.0,0.00021917,2]
[372482779,1752660646817,-2537.84,0.00021917,2]
[372482781,1752660646827,-2810.83,0.00021917,2]
[372482783,1752660646837,-151.0,0.00021917,2]
[372482785,1752660646846,-632.09,0.00021917,2]
[372482787,1752660646856,-968.29,0.00021917,2]
[372482789,1752660646866,-460.0,0.00021917,2]
[372482791,1752660646876,-460.0,0.00021917,2]
[372482793,1752660646885,-1353.97,0.00021917,2]
[372482795,1752660646895,-460.0,0.00021917,2]
[372482798,1752660646906,-217.440783,0.00021917,2]
[372482800,1752660646915,-460.0,0.00021917,2]
[372482802,1752660646930,-460.0,0.00021917,2]
[372482804,1752660646941,-460.0,0.00021917,2]
[372482806,1752660646952,-460.0,0.00021917,2]
[372482808,1752660646963,-748.13,0.00021917,2]
[372482810,1752660646973,-460.0,0.00021917,2]
[372482813,1752660646983,-685.04,0.00021917,2]
[372482815,1752660646993,-250.0,0.00021917,2]
[372482817,1752660647003,-1886.57,0.00021917,2]
[372482819,1752660647013,-276.47802,0.00021917,2]
[372482821,1752660647023,-460.0,0.00021917,2]
[372482823,1752660647033,-460.0,0.00021917,2]
[372482825,1752660647042,-460.0,0.00021917,2]
[372482827,1752660647052,-460.0,0.00021917,2]
[372482829,1752660647062,-848.22,0.00021917,2]
[372482831,1752660647071,-621.83,0.00021917,2]
[372482833,1752660647081,-2622.54,0.00021917,2]
[372482835,1752660647090,-461.47181183,0.00021917,2]
[372482837,1752660647100,-460.0,0.00021917,2]
[372482839,1752660647110,-460.0,0.00021917,2]
[372482841,1752660647120,-461.07335345,0.00021917,2]
[372482843,1752660647130,-2488.33,0.00021917,2]
[372482845,1752660647140,-151.0,0.00021917,2]
[372482847,1752660647150,-151.0,0.00021917,2]
[372482849,1752660647160,-1553.71,0.00021917,2]
[372482851,1752660647171,-460.0,0.00021917,2]
[372482853,1752660647181,-460.0,0.00021917,2]
[372482855,1752660647191,-460.0,0.00021917,2]
[372482857,1752660647202,-460.0,0.00021917,2]
[372482859,1752660647215,-460.0,0.00021917,2]
[372482861,1752660647225,-1184.2,0.00021917,2]
[372482863,1752660647235,-460.0,0.00021917,2]
[372482865,1752660647245,-460.0,0.00021917,2]
[372482868,1752660647255,-460.0,0.00021917,2]
[372482870,1752660647264,-1409.67,0.00021917,2]
[372482872,1752660647275,-150.98966253,0.00021917,2]
[372482874,1752660647284,-151.0,0.00021917,2]
[372482876,1752660647294,-460.0,0.00021917,2]
[372482878,1752660647304,-151.0,0.00021917,2]
[372482880,1752660647314,-574.34,0.00021917,2]
[372482882,1752660647324,-1419.19,0.00021917,2]
[372482884,1752660647333,-460.0,0.00021917,2]
[372482886,1752660647343,-460.0,0.00021917,2]
[372482888,1752660647353,-1477.34,0.00021917,2]
[372482890,1752660647368,-1324.1,0.00021917,2]
[372482892,1752660647378,-460.0,0.00021917,2]
[372482894,1752660647388,-460.0,0.00021917,2]
[372482896,1752660647398,-1950.78,0.00021917,2]
[372482898,1752660647408,-1584.59,0.00021917,2]
[372482900,1752660647422,-1143.33,0.00021917,2]
[372482903,1752660647433,-460.0,0.00021917,2]
[372482905,1752660647443,-460.0,0.00021917,2]
[372482907,1752660647454,-460.0,0.00021917,2]
[372482909,1752660647466,-197.496763,0.00021917,2]
[372482911,1752660647476,-197.496763,0.00021917,2]
[372482913,1752660647487,-460.0,0.00021917,2]
[372482915,1752660647498,-197.496763,0.00021917,2]
[372482917,1752660647509,-155.336809,0.00021917,2]
[372482919,1752660647519,-460.0,0.00021917,2]
[372482921,1752660647529,-816.39,0.00021917,2]
[372482923,1752660647539,-460.0,0.00021917,2]
[372482925,1752660647549,-460.0,0.00021917,2]
[372482928,1752660647559,-734.61,0.00021917,2]
[372482930,1752660647569,-197.496763,0.00021917,2]
[372482932,1752660647579,-197.496763,0.00021917,2]
[372482934,1752660647589,-2289.45,0.00021917,2]
[372482936,1752660647598,-460.0,0.00021917,2]
[372482938,1752660647608,-197.496763,0.00021917,2]